[Event "Grand Prix Romania 1st Stage 2024"]
[Site "Bucuresti"]
[Date "2024.03.24"]
[Round "8.36"]
[White "Sokolov, Ivan"]
[Black "Economescu, Valentin"]
[Result "1-0"]
[ECO "A73"]
[WhiteElo "2590"]
[BlackElo "2147"]
[Annotator "TA"]
[PlyCount "97"]
[EventDate "2024.03.20"]
[EventType "swiss"]
[EventCountry "ROU"]
[SourceTitle "playchess.com"]
[Source "ChessBase"]
[SourceQuality "1"]
[TimeControl "900+5"]

{[%evp 18,97,41,23,42,33,37,37,52,-33,36,31,46,49,79,66,69,69,72,74,138,49,64,52,52,25,29,22,27,15,26,0,0,0,0,0,0,0,0,-27,0,-36,-7,-98,-21,-25,0,0,0,-75,-47,-47,-47,-47,0,0,52,36,145,145,157,157,134,133,168,122,125,97,96,113,125,99,131,93,971,664,719,687,6544,6440,29998,29999]} 1. d4 {[%emt 0:00:03]} Nf6 {[%emt 0:00:01]} 2. c4 {[%emt 0:00:02]} c5 {[%emt 0:00:16]} 3. d5 {[%emt 0:00:02]} e6 {[%emt 0:00:04]} 4. Nc3 {[%emt 0:00:02]} exd5 {[%emt 0:00:01]} 5. cxd5 {[%emt 0:00:01]} d6 {[%emt 0:00:03]} 6. Nf3 {[%emt 0:00:02]} g6 {[%emt 0:00:02]} 7. Nd2 {[%emt 0:00:03]} Bg7 {[%emt 0:00:15]} 8. e4 {[%emt 0:00:02]} O-O {[%emt 0:00:05]} 9. Be2 {[%emt 0:00:01]} Na6 {[%emt 0:00:39]} 10. O-O {[%emt 0:00:04]} Rb8 {[%emt 0:00:18]} 11. Kh1 {[%emt 0:00:25]} Nc7 {[%emt 0:00:05]} 12. a4 {[%emt 0:00:02]} b6 {[%emt 0:00:19] White is slightly better.} 13. Ra3 {[%emt 0:00:18]} (13. Nc4 $14) 13... Re8 {[%emt 0:00:22]} (13... a6 $15) 14. f3 $14 {[%emt 0:00:13]} Nh5 {[%emt 0:00:31]} 15. Nc4 {[%emt 0:00:25]} Ba6 {[%emt 0:00:43]} 16. g4 {[%emt 0:00:11]} Nf6 {[%emt 0:00:36]} 17. Bf4 {[%emt 0:00:02]} Bxc4 {[%emt 0:00:06]} 18. Bxc4 {[%emt 0:00:02]} h5 {[%emt 0:00:47] [#]} ({Better is} 18... a6) 19. g5 {[%emt 0:00:43]} (19. e5 $1 $16 {[%cal Re5f6]} dxe5 20. Bg5) 19... Nh7 {[%emt 0:00:04]} 20. Rg1 {[%emt 0:00:08]} a6 {[%emt 0:00:47] aiming for ...b5.} 21. Rb3 {[%emt 0:00:19] Black is weak on the light squares} Re7 {[%emt 0:03:55]} 22. Qf1 {[%emt 0:00:09]} b5 {[%emt 0:00:03]} 23. axb5 {[%emt 0:00:06]} axb5 {[%emt 0:00:01]} 24. Nxb5 {[%emt 0:00:14]} Nxb5 {[%emt 0:00:03]} 25. Rxb5 {[%emt 0:01:13]} Rxb5 {[%emt 0:00:04]} 26. Bxb5 {[%emt 0:00:01]} Bxb2 {[%emt 0:00:26]} 27. h4 {[%emt 0:00:18]} Ra7 {[%emt 0:00:21]} 28. Qh3 {[%emt 0:00:06]} Bd4 {[%emt 0:00:36]} 29. Rf1 {[%emt 0:00:33]} Nf8 {[%emt 0:00:19]} 30. Qg3 {[%emt 0:00:10]} (30. Rb1 $11 {remains equal.}) 30... Qb8 {[%emt 0:00:38]} (30... Qb6 $17 31. Bc4 Nd7 32. Bxd6 Qb4) 31. Rb1 $11 {[%emt 0:00:47]} Ra1 {[%emt 0:00:27]} 32. Rxa1 {[%emt 0:00:14]} Bxa1 {[%emt 0:00:01]} 33. Bc6 {[%emt 0:00:53]} (33. Qe1 $11 {keeps the balance.}) 33... Be5 {[%emt 0:02:04]} ({Much worse is} 33... Qb1+ 34. Qg1 Qb3 35. Qf1 $11) (33... Bd4 {with more complications.} 34. Qe1 Qb3 35. Kg2 c4) 34. Bxe5 {[%emt 0:00:03]} dxe5 $15 {[%emt 0:00:02][%mdl 4096] Endgame. KQB-KQN} 35. Qf2 {[%emt 0:00:04]} Qd6 {[%emt 0:00:21]} (35... c4 $15 36. Kg2 c3) 36. Qc2 {[%emt 0:00:10]} Nd7 {[%emt 0:00:12]} (36... f6 $11) 37. Kg2 {[%emt 0:01:12]} Nb8 {[%emt 0:01:27]} (37... Nb6 $14) 38. Qa4 $16 {[%emt 0:00:45] White is more active.} Kf8 {[%emt 0:00:02]} 39. Bb5 {[%emt 0:00:29]} Qb6 {[%emt 0:00:15] Wards off Qa7} 40. Kf1 {[%emt 0:00:17]} Ke7 {[%emt 0:00:13]} 41. Ke2 {[%emt 0:00:02]} ({White should play} 41. Ke1 $18) 41... f6 {[%emt 0:00:20] [#]} 42. gxf6+ $1 {[%emt 0:00:10]} Kxf6 {[%emt 0:00:01]} 43. Qc4 {[%emt 0:01:15]} g5 {[%emt 0:00:05]} 44. hxg5+ {[%emt 0:00:04]} Kxg5 {[%emt 0:00:01]} 45. Kf2 {[%emt 0:00:03] Black must now prevent Qc1+.} Qa5 $2 {[%emt 0:00:27][%mdl 8192] This costs Black the game.} (45... Kf6 $16) 46. Qxc5 {[%emt 0:00:38] Strongly threatening Qe7+.} Qd2+ {[%emt 0:00:12]} 47. Be2 {[%emt 0:00:03]} Nd7 {[%emt 0:00:14]} 48. Qe7+ {[%emt 0:00:09]} Nf6 {[%emt 0:00:01]} 49. Qg7+ {[%emt 0:00:03] Weighted Error Value: White=0.32/Black=0.45.  Loses game:     	---       	Black=1      Mistake:       	White=5     	Black=6      Inaccurate:     	White=5     	Black=3      OK:         	White=14    	Black=12     Best:        	White=2     	---        Strong:       	White=1     	---} 1-0

[Event "Grand Prix Romania 1st Stage 2024"]
[Site "Bucuresti"]
[Date "2024.03.24"]
[Round "8.37"]
[White "Stepanencu, Nicodim-Cosmin"]
[Black "Stan, Andrei-Mihaita"]
[Result "1-0"]
[ECO "D26"]
[WhiteElo "2278"]
[BlackElo "2042"]
[Annotator "RC"]
[PlyCount "61"]
[EventDate "2024.03.20"]
[EventType "swiss"]
[EventCountry "ROU"]
[SourceTitle "playchess.com"]
[Source "ChessBase"]
[SourceQuality "1"]
[TimeControl "900+5"]

1. d4 {[%emt 0:00:02]} Nf6 {[%emt 0:00:01]} 2. c4 {[%emt 0:00:03]} e6 {[%emt 0:00:05]} 3. Nc3 {[%emt 0:00:02]} Bb4 {[%emt 0:00:14]} 4. e3 {[%emt 0:00:05]} c5 {[%emt 0:00:16]} 5. Bd3 {[%emt 0:00:20]} Nc6 {[%emt 0:01:00]} 6. Nf3 {[%emt 0:00:36]} cxd4 {[%emt 0:00:20]} 7. exd4 {[%emt 0:00:02]} d5 {[%emt 0:00:06]} 8. O-O {[%emt 0:00:11]} dxc4 {[%emt 0:00:39]} 9. Bxc4 {[%emt 0:00:03]} O-O {[%emt 0:00:16]} 10. a3 {[%emt 0:01:45]} Be7 {[%emt 0:00:18]} 11. Re1 {[%emt 0:00:59]} a6 {[%emt 0:00:16]} 12. Ba2 {[%emt 0:00:09]} Qd6 {[%emt 0:01:18]} 13. Bg5 {[%emt 0:00:19]} Rd8 {[%emt 0:00:21]} 14. Ne2 {[%emt 0:03:44]} Nd5 {[%emt 0:02:29]} 15. Qd3 {[%emt 0:00:49]} h6 {[%emt 0:00:32]} 16. Bd2 {[%emt 0:00:31]} Bf8 {[%emt 0:01:44]} 17. Rad1 {[%emt 0:00:20]} b5 {[%emt 0:00:51]} 18. Bb1 {[%emt 0:00:02]} g6 {[%emt 0:00:03]} 19. h4 {[%emt 0:00:04]} h5 {[%emt 0:01:00]} 20. Ng3 {[%emt 0:00:05]} Bg7 {[%emt 0:01:12]} 21. Bg5 {[%emt 0:00:36]} Re8 {[%emt 0:00:28]} 22. Ne4 {[%emt 0:00:24]} Qc7 {[%emt 0:00:37]} 23. Rc1 {[%emt 0:00:33]} Bb7 {[%emt 0:00:11]} 24. Ba2 {[%emt 0:00:10]} Qb6 {[%emt 0:01:18]} 25. Red1 {[%emt 0:04:32]} Nce7 {[%emt 0:00:22]} 26. Ne5 {[%emt 0:00:10]} Bxe5 {[%emt 0:00:27]} 27. dxe5 {[%emt 0:00:01]} Rec8 {[%emt 0:00:34]} 28. Nd6 {[%emt 0:00:41]} Rxc1 {[%emt 0:00:13]} 29. Rxc1 {[%emt 0:00:01]} Rd8 {[%emt 0:00:09]} 30. Bxd5 {[%emt 0:00:06]} Nxd5 {[%emt 0:00:09]} 31. Bxd8 {[%emt 0:00:02]} 1-0

[Event "Grand Prix Romania 1st Stage 2024"]
[Site "Bucuresti"]
[Date "2024.03.24"]
[Round "8.38"]
[White "Cnejev, Vladimir-Alexandru"]
[Black "Toma, Iustin"]
[Result "1-0"]
[ECO "A06"]
[WhiteElo "2311"]
[BlackElo "1891"]
[Annotator "RC"]
[PlyCount "101"]
[EventDate "2024.03.20"]
[EventType "swiss"]
[EventCountry "ROU"]
[SourceTitle "playchess.com"]
[Source "ChessBase"]
[SourceQuality "1"]
[TimeControl "900+5"]

1. Nf3 {[%emt 0:00:03]} Nf6 {[%emt 0:00:02]} 2. b3 {[%emt 0:00:01]} d5 {[%emt 0:00:10]} 3. Bb2 {[%emt 0:00:03]} c5 {[%emt 0:00:01]} 4. e3 {[%emt 0:00:10]} Nc6 {[%emt 0:00:08]} 5. Bb5 {[%emt 0:00:33]} Bg4 {[%emt 0:01:19]} 6. h3 {[%emt 0:00:06]} Bxf3 {[%emt 0:00:26]} 7. Qxf3 {[%emt 0:00:04]} Qd6 {[%emt 0:00:31]} 8. O-O {[%emt 0:00:15]} e5 {[%emt 0:00:10]} 9. c4 {[%emt 0:01:41]} a6 {[%emt 0:02:39]} 10. cxd5 {[%emt 0:00:58]} axb5 {[%emt 0:00:16]} 11. dxc6 {[%emt 0:00:06]} e4 {[%emt 0:02:25]} 12. cxb7 {[%emt 0:03:05]} Rb8 {[%emt 0:00:01]} 13. Qf5 {[%emt 0:00:35]} Qe6 {[%emt 0:01:27]} 14. Qxe6+ fxe6 {[%emt 0:00:02]} 15. Bxf6 {[%emt 0:00:38]} gxf6 {[%emt 0:00:02]} 16. Nc3 {[%emt 0:00:02]} b4 {[%emt 0:01:21]} 17. Nxe4 {[%emt 0:03:21]} f5 {[%emt 0:00:02]} 18. Ng5 {[%emt 0:00:07]} Ke7 {[%emt 0:00:50]} 19. Rac1 {[%emt 0:00:11]} Kf6 {[%emt 0:00:03]} 20. Nf3 {[%emt 0:00:17]} Rxb7 {[%emt 0:00:02]} 21. d4 {[%emt 0:00:02]} cxd4 {[%emt 0:01:26]} 22. Nxd4 {[%emt 0:00:02]} Bd6 {[%emt 0:02:40]} 23. Rc6 {[%emt 0:00:34]} Rd8 {[%emt 0:00:01]} 24. Rd1 {[%emt 0:00:43]} Rc7 {[%emt 0:00:33]} 25. Rxc7 {[%emt 0:01:27]} Bxc7 {[%emt 0:00:01]} 26. Rc1 {[%emt 0:00:02]} Bb6 {[%emt 0:00:27]} 27. Rc4 {[%emt 0:00:01]} Ra8 {[%emt 0:00:07]} 28. Nxe6 {[%emt 0:00:46]} Kxe6 {[%emt 0:00:03]} 29. Rc6+ {[%emt 0:00:01]} Kd5 {[%emt 0:00:02]} 30. Rxb6 {[%emt 0:00:02]} Kc5 {[%emt 0:00:06]} 31. Rf6 {[%emt 0:00:05]} Rxa2 {[%emt 0:00:01]} 32. Rxf5+ {[%emt 0:00:01]} Kc6 {[%emt 0:00:04]} 33. Rf4 {[%emt 0:00:47]} Kc5 {[%emt 0:00:06]} 34. Rc4+ {[%emt 0:00:06]} Kb5 {[%emt 0:00:01]} 35. Rd4 {[%emt 0:00:04]} Rc2 {[%emt 0:00:06]} 36. g4 {[%emt 0:00:37]} Rc3 {[%emt 0:00:03]} 37. Rd7 {[%emt 0:00:13]} h6 {[%emt 0:00:10]} 38. Rd5+ {[%emt 0:00:16]} Kc6 {[%emt 0:00:06]} 39. Rh5 {[%emt 0:00:02]} Rxb3 {[%emt 0:00:20]} 40. Rxh6+ {[%emt 0:00:01]} Kc5 {[%emt 0:00:00]} 41. g5 {[%emt 0:00:05]} Rd3 {[%emt 0:00:00]} 42. Rh8 {[%emt 0:00:08]} Rd6 {[%emt 0:00:07]} 43. Rc8+ {[%emt 0:00:11]} Kd5 {[%emt 0:00:04]} 44. Rb8 {[%emt 0:00:04]} Kc4 {[%emt 0:00:02]} 45. h4 {[%emt 0:00:04]} Rg6 {[%emt 0:00:06]} 46. f4 {[%emt 0:00:05]} b3 {[%emt 0:00:07]} 47. h5 {[%emt 0:00:03]} Re6 {[%emt 0:00:03]} 48. Kf2 {[%emt 0:00:06]} Re7 {[%emt 0:00:08]} 49. h6 {[%emt 0:00:05]} Kc3 {[%emt 0:00:02]} 50. g6 {[%emt 0:00:02]} b2 {[%emt 0:00:07]} 51. h7 {[%emt 0:00:04]} 1-0

[Event "Grand Prix Romania 1st Stage 2024"]
[Site "Bucuresti"]
[Date "2024.03.24"]
[Round "8.39"]
[White "Tanasie, Cosmin"]
[Black "Serban, Cristian-Stefan"]
[Result "0-1"]
[ECO "B13"]
[WhiteElo "2009"]
[BlackElo "2309"]
[Annotator "RC"]
[PlyCount "72"]
[EventDate "2024.03.20"]
[EventType "swiss"]
[EventCountry "ROU"]
[SourceTitle "playchess.com"]
[Source "ChessBase"]
[SourceQuality "1"]
[TimeControl "900+5"]

1. d4 {[%emt 0:00:02]} Nf6 {[%emt 0:00:02]} 2. Bf4 {[%emt 0:00:02]} c5 {[%emt 0:00:01]} 3. e3 {[%emt 0:00:02]} Qb6 {[%emt 0:00:03]} 4. b3 {[%emt 0:00:02]} cxd4 {[%emt 0:00:46]} 5. exd4 {[%emt 0:00:02]} d5 {[%emt 0:00:30]} 6. Nf3 {[%emt 0:00:25]} Bg4 {[%emt 0:00:10]} 7. Be2 {[%emt 0:00:06]} Nc6 {[%emt 0:00:02]} 8. c3 {[%emt 0:00:10]} e6 {[%emt 0:00:07]} 9. O-O {[%emt 0:00:05]} Be7 {[%emt 0:00:02]} 10. Nbd2 {[%emt 0:00:51]} O-O {[%emt 0:00:03]} 11. h3 {[%emt 0:01:08]} Bh5 {[%emt 0:00:15]} 12. Ne5 {[%emt 0:00:05]} Bxe2 {[%emt 0:00:03]} 13. Qxe2 {[%emt 0:00:02]} Rac8 {[%emt 0:00:11]} 14. Qd3 {[%emt 0:00:47]} Nxe5 {[%emt 0:00:07]} 15. Bxe5 {[%emt 0:00:05]} Qa5 {[%emt 0:01:26]} 16. Rfc1 {[%emt 0:01:02]} Rc6 {[%emt 0:00:26]} 17. c4 {[%emt 0:00:25]} dxc4 {[%emt 0:00:08]} 18. Rxc4 {[%emt 0:04:16]} Rxc4 {[%emt 0:00:22]} 19. bxc4 {[%emt 0:00:19]} Rd8 {[%emt 0:00:05]} 20. Qe3 {[%emt 0:02:11]} h6 {[%emt 0:01:17]} 21. Ne4 {[%emt 0:00:19]} Nxe4 {[%emt 0:00:04]} 22. Qxe4 {[%emt 0:00:02]} b6 {[%emt 0:00:07]} 23. Rd1 {[%emt 0:01:52]} Qxa2 {[%emt 0:00:23]} 24. d5 {[%emt 0:00:03]} Bc5 {[%emt 0:00:45]} 25. Bg3 {[%emt 0:00:35]} b5 {[%emt 0:01:14]} 26. cxb5 {[%emt 0:01:09]} Rxd5 {[%emt 0:00:04]} 27. Rc1 {[%emt 0:00:07]} Rf5 {[%emt 0:00:23]} 28. Rc2 {[%emt 0:00:09]} Qb1+ {[%emt 0:00:12]} 29. Kh2 {[%emt 0:00:02]} Qxb5 {[%emt 0:00:10]} 30. Bf4 {[%emt 0:00:34]} Qb6 {[%emt 0:00:22]} 31. g4 {[%emt 0:00:14]} Rxf4 {[%emt 0:00:25]} 32. Qa8+ {[%emt 0:00:18]} Kh7 {[%emt 0:00:10]} 33. f3 {[%emt 0:00:01]} Rb4 {[%emt 0:00:27]} 34. Rd2 {[%emt 0:00:09]} Rb2 {[%emt 0:00:09]} 35. Qe4+ {[%emt 0:00:02]} g6 {[%emt 0:00:01]} 36. Qe2 {[%emt 0:00:14]} Qd6+ {[%emt 0:00:11]} 0-1

[Event "Grand Prix Romania 1st Stage 2024"]
[Site "Bucuresti"]
[Date "2024.03.24"]
[Round "9.1"]
[White "Deac, Bogdan-Daniel"]
[Black "Sargsyan, Shant"]
[Result "1/2-1/2"]
[ECO "C89"]
[WhiteElo "2690"]
[BlackElo "2637"]
[Annotator "TA"]
[PlyCount "125"]
[EventDate "2024.03.20"]
[EventType "swiss"]
[EventCountry "ROU"]
[SourceTitle "playchess.com"]
[Source "ChessBase"]
[SourceQuality "1"]
[TimeControl "900+5"]

{[%evp 39,124,0,0,0,0,0,0,0,0,3,8,13,5,4,14,14,17,16,16,16,18,22,20,5,6,0,0,0,0,0,0,0,0,0,0,0,0,0,0,0,0,0,1,1,16,16,386,0,8,0,0,0,0,0,0,0,0,0,0,0,0,0,8,8,8,8,8,8,8,8,8,8,8,0,0,0,0,0,0,0,0,0,0,0,0,0,0]} 1. e4 {[%emt 0:00:03]} e5 {[%emt 0:00:01]} 2. Nf3 {[%emt 0:00:02]} Nc6 {[%emt 0:00:02]} 3. Bb5 {[%emt 0:00:02]} a6 {[%emt 0:00:01]} 4. Ba4 {[%emt 0:00:02]} Nf6 {[%emt 0:00:02]} 5. O-O {[%emt 0:00:03]} Be7 {[%emt 0:00:01]} 6. Re1 {[%emt 0:00:09]} b5 {[%emt 0:00:01]} 7. Bb3 {[%emt 0:00:02]} O-O {[%emt 0:00:03]} 8. c3 {[%emt 0:00:10]} d5 {[%emt 0:00:13]} 9. exd5 {[%emt 0:00:04]} Nxd5 {[%emt 0:00:02]} 10. Nxe5 {[%emt 0:00:03]} Nxe5 {[%emt 0:00:02]} 11. Rxe5 {[%emt 0:00:01]} c6 {[%emt 0:00:01]} 12. d3 {[%emt 0:00:06]} Bd6 {[%emt 0:00:04]} 13. Re1 {[%emt 0:00:02]} Bf5 $1 {[%emt 0:00:24] 13...Bf5 scores better than 13...Qh4.} 14. Qf3 {[%emt 0:00:21]} Qh4 {[%emt 0:00:03] C89: Closed Ruy Lopez: Marshall Attack.} 15. g3 {[%emt 0:00:03]} Qh3 {[%emt 0:00:02]} 16. Nd2 {[%emt 0:05:09]} Rae8 {[%emt 0:00:08]} 17. Ne4 {[%emt 0:00:43]} Bg4 {[%emt 0:00:12]} 18. Qg2 {[%emt 0:00:03]} Qxg2+ {[%emt 0:00:17]} 19. Kxg2 {[%emt 0:00:01]} f5 {[%emt 0:00:02]} 20. Bf4 {[%emt 0:02:31]} Bxf4 {[%emt 0:00:08]} (20... fxe4 $2 {too greedy.} 21. Bxd6 Bf3+ 22. Kf1 $18 (22. Kg1 Rf6 $18)) 21. gxf4 {[%emt 0:00:02]} fxe4 {[%emt 0:00:10]} 22. dxe4 {[%emt 0:00:01]} Bf3+ $1 {[%emt 0:00:06]} 23. Kxf3 {[%emt 0:00:03]} Rxf4+ {[%emt 0:00:01]} 24. Kg3 {[%emt 0:00:01]} Rfxe4 {[%emt 0:00:13]} 25. Rxe4 {[%emt 0:00:27]} Rxe4 {[%emt 0:00:01]} 26. f3 {[%emt 0:00:23]} Re2 {[%emt 0:02:26]} 27. c4 {[%emt 0:00:19]} bxc4 {[%emt 0:00:06]} 28. Bxc4 {[%emt 0:00:01]} Rxb2 {[%emt 0:00:02]} 29. Bxa6 {[%emt 0:00:02]} g5 {[%emt 0:00:37]} 30. a4 {[%emt 0:06:00]} Kg7 $1 {[%emt 0:01:48]} 31. h4 {[%emt 0:00:08]} Kf6 {[%emt 0:01:12]} 32. Bf1 $146 {[%emt 0:00:22]} ({Predecessor:} 32. a5 Nf4 33. Bf1 Kf5 34. Bh3+ {½-½ Sherwood,R (2367)-Visloguzov,V (2375) olm22 sf05 email 2020 [6]}) 32... Ne3 {[%emt 0:02:11]} 33. Bd3 {[%emt 0:00:13]} Nf5+ {[%emt 0:04:42]} 34. Bxf5 {[%emt 0:00:02]} Kxf5 {[%emt 0:00:02]} 35. hxg5 {[%emt 0:00:08]} Kxg5 {[%emt 0:00:01]} 36. Rc1 {[%emt 0:00:05]} Rb6 {[%emt 0:00:34]} 37. Rc5+ {[%emt 0:00:05]} Kf6 {[%emt 0:00:02]} 38. a5 {[%emt 0:00:01]} Ra6 {[%emt 0:00:02]} 39. Kf4 {[%emt 0:00:04]} Ke6 {[%emt 0:00:23]} 40. Ke4 {[%emt 0:00:08]} Kd6 {[%emt 0:00:02]} 41. Rh5 {[%emt 0:00:02]} Ra7 {[%emt 0:01:03]} 42. f4 {[%emt 0:00:04]} Re7+ $2 {[%emt 0:00:29][%mdl 8192]} (42... Ra8 $11 {and Black is okay.}) 43. Re5 $2 {[%emt 0:00:07]} ({White has to play} 43. Kd4 $18 {Black must now prevent Rh6+.} Rd7 44. f5) 43... Rg7 {[%emt 0:00:12]} ({Weaker is} 43... Rxe5+ 44. fxe5+ Kc5 45. e6 Kd6 46. Kf5 (46. a6 Kxe6 47. a7 Kd6 48. a8=Q h5 49. Qf8+ Ke6 50. Qc5 Kf6 51. Qxc6+ Kg5) 46... h5 47. a6 h4 48. a7) 44. a6 {[%emt 0:00:04]} Ra7 {[%emt 0:00:06]} 45. Ra5 {[%emt 0:00:04]} h5 {[%emt 0:00:07]} 46. f5 {[%emt 0:00:09]} h4 {[%emt 0:00:14]} 47. Kf4 {[%emt 0:00:03]} c5 {[%emt 0:00:09]} 48. Kg4 {[%emt 0:00:09]} c4 {[%emt 0:00:02]} 49. Kxh4 {[%emt 0:00:04]} c3 {[%emt 0:00:02]} 50. Ra2 {[%emt 0:00:05]} Ke7 {[%emt 0:00:14]} 51. Kg5 {[%emt 0:00:06]} Kf7 {[%emt 0:00:04]} 52. Rc2 {[%emt 0:00:05]} Rxa6 {[%emt 0:00:02]} 53. Rxc3 {[%emt 0:00:02]} Rb6 {[%emt 0:00:06]} 54. Rc7+ {[%emt 0:00:02]} Kf8 {[%emt 0:00:01]} 55. Rh7 {[%emt 0:00:01]} Ra6 {[%emt 0:00:04]} 56. Rh6 {[%emt 0:00:04]} Rxh6 {[%emt 0:00:03]} 57. Kxh6 {[%emt 0:00:01]} Kf7 {[%emt 0:00:02]} 58. Kg5 {[%emt 0:00:01]} Kg7 {[%emt 0:00:01]} 59. f6+ {[%emt 0:00:01]} Kf7 {[%emt 0:00:00]} 60. Kf5 {[%emt 0:00:01]} Kf8 {[%emt 0:00:01]} 61. Kg6 {[%emt 0:00:02]} (61. Ke5 $5) 61... Kg8 {[%emt 0:00:01]} 62. f7+ {[%emt 0:00:01]} Kf8 {[%emt 0:00:01]} 63. Kf6 {[%emt 0:00:01]} 1/2-1/2

[Event "Grand Prix Romania 1st Stage 2024"]
[Site "Bucuresti"]
[Date "2024.03.24"]
[Round "9.2"]
[White "Kozak, Adam"]
[Black "Korobov, Anton"]
[Result "0-1"]
[ECO "B50"]
[WhiteElo "2607"]
[BlackElo "2662"]
[Annotator "TA"]
[PlyCount "58"]
[EventDate "2024.03.20"]
[EventType "swiss"]
[EventCountry "ROU"]
[SourceTitle "playchess.com"]
[Source "ChessBase"]
[SourceQuality "1"]
[TimeControl "900+5"]

{[%evp 9,57,0,0,1,5,0,8,-8,21,14,21,0,28,0,0,0,0,0,0,0,60,0,0,0,0,0,22,0,0,0,0,0,0,0,0,0,0,0,6,0,9,0,0,0,0,-606,-595,-963,-963,-29999]} 1. e4 {[%emt 0:00:06]} c5 {[%emt 0:00:01]} 2. Nf3 {[%emt 0:00:02]} d6 {[%emt 0:00:01]} 3. h3 {[%emt 0:00:02]} Nf6 {[%emt 0:00:25]} 4. Nc3 {[%emt 0:00:02]} a6 {[%emt 0:00:17]} 5. a4 {[%emt 0:00:17]} Nc6 {[%emt 0:00:13]} 6. g3 {[%emt 0:01:00]} g6 {[%emt 0:00:23]} 7. d4 {[%emt 0:02:04]} cxd4 {[%emt 0:00:04]} 8. Nxd4 {[%emt 0:00:02] The position is equal.} Bd7 {[%emt 0:00:14]} 9. Bg2 {[%emt 0:00:09]} Bg7 {[%emt 0:00:02][%cal Of6e4]} 10. O-O {[%emt 0:01:11]} O-O {[%emt 0:00:11]} 11. Nb3 {[%emt 0:00:26]} Rc8 {[%emt 0:01:06]} 12. Nd5 {[%emt 0:01:08]} Ne5 {[%emt 0:01:48]} 13. Re1 {[%emt 0:01:57]} Nxd5 {[%emt 0:03:06]} 14. exd5 {[%emt 0:00:02]} Rc4 {[%emt 0:00:54]} (14... Nc4 $11) 15. a5 {[%emt 0:03:41]} ({White should play} 15. f4 $1 $14) 15... Qc8 {[%emt 0:01:40]} 16. f4 {[%emt 0:02:29]} Bxh3 $1 {[%emt 0:00:03] [#] Strongly threatening ...Bg4.} 17. fxe5 {[%emt 0:00:02]} Bxe5 {[%emt 0:00:11]} 18. Re4 {[%emt 0:01:42]} (18. Rxe5 dxe5 19. c3 (19. Nd2 $2 Rd4 $17) 19... Bxg2 20. Kxg2 Rd8 $17) 18... Bxg2 {[%emt 0:02:28]} ({Much weaker is} 18... Rxe4 19. Bxe4 Bxg3 20. Bh6 $14 (20. Qf3 Be5 $11)) 19. Rxc4 {[%emt 0:00:01]} Qxc4 {[%emt 0:00:11]} 20. Kxg2 {[%emt 0:00:01]} Qe4+ {[%emt 0:00:01]} 21. Kf2 {[%emt 0:00:14]} Qf5+ {[%emt 0:00:44]} (21... Rc8 $5 22. c3 $8 h5 $11) 22. Kg2 {[%emt 0:00:01] Hoping for Ra4.} Qe4+ {[%emt 0:00:33]} (22... Rc8 $5 23. c3 $8 Qe4+ 24. Qf3 Qc2+ 25. Nd2 Rc5 $11) 23. Kf2 {[%emt 0:00:01]} h5 {[%emt 0:00:52] White must now prevent ...h4.} (23... Rc8 $5 24. c3 $8 h5 $11) 24. Qd3 {[%emt 0:00:14]} Qh1 {[%emt 0:00:17]} 25. Bf4 {[%emt 0:00:07]} (25. Qf3 {simplifies} Qxf3+ 26. Kxf3 Rc8 27. Be3) 25... Qh2+ {[%emt 0:00:02]} 26. Kf3 {[%emt 0:00:01] [#] Bxe5 is the strong threat.} Rc8 {[%emt 0:00:27] ...Bxf4 would now be deadly.} 27. Nd4 $2 {[%emt 0:00:10][%mdl 8192]} (27. c3 $11 Qxb2 28. c4 (28. Bxe5 dxe5 29. Rb1 Qh2 $17)) 27... Bxd4 $19 {[%emt 0:00:11]} 28. Qxd4 {[%emt 0:00:01]} Rxc2 {[%emt 0:00:04][%csl Gc2][%cal Rh2e2]} ({Stronger than} 28... Qxc2 29. Rc1 Qb3+ 30. Kf2 Rxc1 31. Bxc1 $14) 29. Rf1 {[%emt 0:00:11]} Qe2# {[%emt 0:01:01] Weighted Error Value: White=0.93/Black=0.09 (flawless) .  Loses game:     	White=1     	---        Mistake:       	White=1     	Black=1      Inaccurate:     	White=3     	Black=2      OK:         	White=8     	Black=7      Best:        	White=2     	Black=1      Strong:       	---       	Black=1} 0-1